fUST/lending_fUST_20250529
["ID","MTS","AMOUNT","RATE_DAILY","PERIOD"]
[362938823,1748526638999,-131.10068973,0.00019173,2]
[362938825,1748526639009,-500.0,0.00019173,2]
[362938827,1748526639019,-500.0,0.00019177,2]
[362938829,1748526639028,-161.00133664,0.00019177,2]
[362938831,1748526639037,-233.15333481,0.00019177,2]
[362938833,1748526639046,-500.0,0.00019177,2]
[362938835,1748526639055,-500.0,0.00019177,2]
[362938837,1748526639064,-624.89932449,0.00019177,2]
[362938839,1748526639073,-500.0,0.00019177,2]
[362938841,1748526639082,-500.0,0.00019177,2]
[362938843,1748526639091,-321.78059517,0.00019177,2]
[362938845,1748526639100,-500.0,0.00019177,2]
[362938846,1748526639109,-500.0,0.00019177,2]
[362938850,1748526639120,-500.0,0.00019177,2]
[362938852,1748526639129,-633.71598243,0.00019177,2]
[362938855,1748526639140,-430.0,0.00019178,2]
[362938857,1748526639149,-430.0,0.00019178,2]
[362938859,1748526639158,-402.10128529,0.00019178,2]
[362938861,1748526639167,-430.0,0.00019178,2]
[362938863,1748526639177,-430.0,0.00019178,2]
[362938865,1748526639186,-430.0,0.00019178,2]
[362938867,1748526639195,-430.0,0.00019178,2]
[362938868,1748526639204,-430.0,0.00019178,2]
[362938871,1748526639214,-406.82285507,0.00019178,2]
[362938872,1748526639223,-430.0,0.00019178,2]
[362938874,1748526639232,-430.0,0.00019178,2]
[362938876,1748526639241,-430.0,0.00019178,2]
[362938878,1748526639250,-430.0,0.00019178,2]
[362938880,1748526639259,-430.0,0.00019178,2]
[362938882,1748526639269,-430.0,0.00019178,2]
[362938884,1748526639278,-430.0,0.00019178,2]
[362938886,1748526639288,-259.86814561,0.00019178,2]
[362938889,1748526639298,-430.0,0.00019178,2]
[362938890,1748526639307,-430.0,0.00019178,2]
[362938892,1748526639316,-430.0,0.00019178,2]
[362938894,1748526639326,-430.0,0.00019178,2]
[362938896,1748526639335,-430.0,0.00019178,2]
[362938898,1748526639344,-430.0,0.00019178,2]
[362938900,1748526639353,-430.0,0.00019178,2]
[362938902,1748526639362,-430.0,0.00019178,2]
[362938905,1748526639376,-430.0,0.00019178,2]
[362938907,1748526639386,-430.0,0.00019178,2]
[362938909,1748526639395,-430.0,0.00019178,2]
[362938910,1748526639405,-430.0,0.00019178,2]
[362938913,1748526639414,-430.0,0.00019178,2]
[362938915,1748526639423,-430.0,0.00019178,2]
[362938917,1748526639433,-430.0,0.00019178,2]
[362938919,1748526639442,-433.02,0.00019178,2]
[362938921,1748526639450,-365.97458137,0.00019178,2]
[362938923,1748526639463,-430.0,0.00019178,2]
[362938925,1748526639475,-430.0,0.00019178,2]
[362938927,1748526639483,-430.0,0.00019178,2]
[362938929,1748526639493,-430.0,0.00019178,2]
[362938931,1748526639502,-430.0,0.00019178,2]
[362938933,1748526639511,-430.0,0.00019178,2]
[362938934,1748526639521,-355.58193868,0.00019178,2]
[362938937,1748526639530,-430.0,0.00019178,2]
[362938939,1748526639539,-379.45727242,0.00019178,2]
[362938941,1748526639548,-430.0,0.00019178,2]
[362938943,1748526639558,-430.0,0.00019178,2]
[362938944,1748526639567,-1067.48,0.00019178,2]
[362938946,1748526639576,-151.42443319,0.00019178,2]
[362938948,1748526639586,-430.0,0.00019178,2]
[362938950,1748526639595,-430.0,0.00019178,2]
[362938952,1748526639603,-430.0,0.00019178,2]
[362938954,1748526639613,-430.0,0.00019178,2]
[362938956,1748526639624,-430.0,0.00019178,2]
[362938958,1748526639633,-430.0,0.00019178,2]
[362938960,1748526639642,-430.0,0.00019178,2]
[362938962,1748526639651,-159.4109647,0.00019178,2]
[362938964,1748526639661,-267.15036327,0.00019178,2]
[362938966,1748526639670,-440.00078782,0.00019178,2]
[362938968,1748526639680,-684.63,0.00019178,2]
[362938970,1748526639690,-430.0,0.00019178,2]
[362938972,1748526639699,-430.0,0.00019178,2]
[362938974,1748526639708,-430.0,0.00019178,2]
[362938976,1748526639718,-430.0,0.00019178,2]
[362938978,1748526639727,-450.78938147,0.00019178,2]
[362938980,1748526639736,-430.0,0.00019178,2]
[362938982,1748526639745,-430.0,0.00019178,2]
[362938984,1748526639755,-430.0,0.00019178,2]
[362938986,1748526639764,-430.0,0.00019178,2]
[362938988,1748526639773,-430.0,0.00019178,2]
[362938990,1748526639783,-332.41062033,0.00019178,2]
[362938992,1748526639792,-430.0,0.00019178,2]
[362938994,1748526639801,-430.0,0.00019178,2]
[362938996,1748526639811,-1155.89,0.00019178,2]
[362938998,1748526639820,-430.0,0.00019178,2]
[362939000,1748526639829,-430.0,0.00019178,2]
[362939003,1748526639839,-500.0,0.00019178,2]
[362939006,1748526639849,-430.0,0.00019178,2]
[362939008,1748526639860,-430.0,0.00019178,2]
[362939010,1748526639873,-430.0,0.00019178,2]
[362939012,1748526639884,-430.0,0.00019178,2]
[362939014,1748526639894,-512.93519082,0.00019178,2]
[362939016,1748526639904,-430.0,0.00019178,2]
[362939018,1748526639914,-400.0,0.00019178,2]
[362939020,1748526639923,-311.65227483,0.00019178,2]
[362939022,1748526639933,-430.0,0.00019178,2]
[362939024,1748526639943,-430.0,0.00019178,2]
[362939026,1748526639952,-994.26,0.00019178,2]
[362939028,1748526639962,-296.88581441,0.00019178,2]
[362939031,1748526639971,-430.0,0.00019178,2]
[362939033,1748526639980,-430.0,0.00019178,2]
[362939035,1748526639990,-430.0,0.00019178,2]
[362939037,1748526640000,-430.0,0.00019178,2]
[362939039,1748526640009,-430.0,0.00019178,2]
[362939041,1748526640018,-430.0,0.00019178,2]
[362939043,1748526640028,-430.0,0.00019178,2]
[362939045,1748526640039,-430.0,0.00019178,2]
[362939047,1748526640054,-430.0,0.00019178,2]
[362939049,1748526640066,-430.0,0.00019178,2]
[362939051,1748526640077,-430.0,0.00019178,2]
[362939053,1748526640087,-430.0,0.00019178,2]
[362939056,1748526640097,-430.0,0.00019178,2]
[362939058,1748526640107,-430.0,0.00019178,2]
[362939059,1748526640119,-430.0,0.00019178,2]
[362939062,1748526640129,-430.0,0.00019178,2]
[362939064,1748526640138,-469.48,0.00019178,2]
[362939066,1748526640147,-430.0,0.00019178,2]
[362939068,1748526640157,-430.0,0.00019178,2]
[362939069,1748526640166,-430.0,0.00019178,2]
[362939070,1748526640176,-430.0,0.00019178,2]
[362939071,1748526640186,-430.0,0.00019178,2]
[362939072,1748526640195,-430.0,0.00019178,2]
[362939073,1748526640206,-435.53396256,0.00019178,2]
[362939074,1748526640225,-430.0,0.00019178,2]
[362939075,1748526640235,-430.0,0.00019178,2]
[362939076,1748526640245,-370.0,0.00019178,2]
[362939077,1748526640254,-430.0,0.00019178,2]
[362939078,1748526640264,-1361.12,0.00019178,2]
[362939079,1748526640273,-430.0,0.00019178,2]
[362939080,1748526640283,-382.14472185,0.00019178,2]
[362939081,1748526640293,-430.0,0.00019178,2]
[362939082,1748526640302,-372.93463033,0.00019178,2]
[362939083,1748526640312,-430.0,0.00019178,2]
[362939084,1748526640321,-375.24844841,0.00019178,2]
[362939085,1748526640332,-430.0,0.00019178,2]
[362939086,1748526640341,-430.0,0.00019178,2]
[362939087,1748526640351,-1613.66,0.00019178,2]
[362939088,1748526640361,-430.0,0.00019178,2]
[362939089,1748526640373,-430.0,0.00019178,2]
[362939091,1748526640382,-430.0,0.00019178,2]
[362939093,1748526640391,-432.97265669,0.00019178,2]
[362939095,1748526640401,-430.0,0.00019178,2]
[362939097,1748526640410,-430.0,0.00019178,2]
[362939099,1748526640419,-430.0,0.00019178,2]
[362939101,1748526640429,-430.0,0.00019178,2]
[362939103,1748526640439,-430.0,0.00019178,2]
[362939105,1748526640448,-430.0,0.00019178,2]
[362939107,1748526640457,-430.0,0.00019178,2]
[362939109,1748526640467,-476.87134706,0.00019178,2]
[362939111,1748526640476,-430.0,0.00019178,2]
[362939114,1748526640486,-430.0,0.00019178,2]
[362939116,1748526640496,-430.0,0.00019178,2]
[362939118,1748526640506,-430.0,0.00019178,2]
[362939120,1748526640515,-355.3384,0.00019178,2]
[362939122,1748526640524,-430.0,0.00019178,2]
[362939124,1748526640533,-47377.60310874,0.00019178,2]
[362939125,1748526640542,-544.5413449,0.00019328,2]
[362939127,1748526640552,-430.0,0.00019452,2]
[362939129,1748526640562,-164.9,0.00019452,2]
[362939131,1748526640571,-430.0,0.00019452,2]
[362939134,1748526640581,-430.0,0.00019452,2]
[362939136,1748526640590,-196.29704414,0.00019452,2]
[362939137,1748526640600,-430.0,0.00019452,2]
[362939140,1748526640610,-430.0,0.00019452,2]
[362939142,1748526640622,-430.0,0.00019452,2]
[362939144,1748526640631,-444.11085541,0.00019452,2]
[362939146,1748526640640,-430.0,0.00019452,2]
[362939148,1748526640649,-430.0,0.00019452,2]
[362939150,1748526640658,-430.0,0.00019452,2]
[362939152,1748526640667,-430.0,0.00019452,2]
[362939153,1748526640677,-430.0,0.00019452,2]
[362939156,1748526640686,-430.0,0.00019452,2]
[362939158,1748526640696,-430.0,0.00019452,2]
[362939160,1748526640705,-430.0,0.00019452,2]
[362939162,1748526640714,-400.0,0.00019452,2]
[362939164,1748526640723,-430.0,0.00019452,2]
[362939166,1748526640733,-430.0,0.00019452,2]
[362939168,1748526640742,-430.0,0.00019452,2]
[362939170,1748526640751,-430.0,0.00019452,2]
[362939172,1748526640760,-400.0,0.00019452,2]
[362939174,1748526640770,-1067.48,0.00019452,2]
[362939175,1748526640779,-430.0,0.00019452,2]
[362939177,1748526640789,-430.0,0.00019452,2]
[362939179,1748526640799,-430.0,0.00019452,2]
[362939181,1748526640808,-267.99025452,0.00019452,2]
[362939183,1748526640818,-684.63,0.00019452,2]
[362939185,1748526640827,-430.0,0.00019452,2]
[362939187,1748526640838,-430.0,0.00019452,2]
[362939189,1748526640848,-430.0,0.00019452,2]
[362939191,1748526640858,-430.0,0.00019452,2]
[362939194,1748526640876,-430.0,0.00019452,2]
[362939196,1748526640886,-430.0,0.00019452,2]
[362939197,1748526640897,-430.0,0.00019452,2]
[362939199,1748526640907,-430.0,0.00019452,2]
[362939201,1748526640917,-430.0,0.00019452,2]
[362939203,1748526640927,-430.0,0.00019452,2]
[362939205,1748526640937,-1155.89,0.00019452,2]
[362939208,1748526640949,-430.0,0.00019452,2]
[362939210,1748526640959,-500.0,0.00019452,2]
[362939212,1748526640969,-430.0,0.00019452,2]
[362939214,1748526640980,-289.34705371,0.00019452,2]
[362939216,1748526640989,-430.0,0.00019452,2]
[362939218,1748526640999,-261.65358283,0.00019452,2]
[362939220,1748526641009,-430.0,0.00019452,2]
[362939222,1748526641018,-430.0,0.00019452,2]
[362939224,1748526641027,-994.26,0.00019452,2]
[362939226,1748526641037,-430.0,0.00019452,2]
[362939228,1748526641047,-349.83967315,0.00019452,2]
[362939230,1748526641056,-430.0,0.00019452,2]
[362939232,1748526641065,-430.0,0.00019452,2]
[362939234,1748526641074,-430.0,0.00019452,2]
[362939236,1748526641083,-430.0,0.00019452,2]
[362939238,1748526641092,-430.0,0.00019452,2]
[362939240,1748526641101,-430.0,0.00019452,2]
[362939242,1748526641112,-430.0,0.00019452,2]
[362939244,1748526641126,-469.48,0.00019452,2]
[362939246,1748526641136,-430.0,0.00019452,2]
[362939248,1748526641146,-430.0,0.00019452,2]
[362939250,1748526641156,-430.0,0.00019452,2]
[362939252,1748526641166,-430.0,0.00019452,2]
[362939254,1748526641176,-370.0,0.00019452,2]
[362939256,1748526641186,-1361.12,0.00019452,2]
[362939258,1748526641197,-430.0,0.00019452,2]
[362939260,1748526641208,-433.56780728,0.00019452,2]
[362939262,1748526641218,-430.0,0.00019452,2]
[362939264,1748526641228,-430.0,0.00019452,2]
[362939266,1748526641237,-1613.66,0.00019452,2]
[362939268,1748526641247,-235.74534492,0.00019452,2]
[362939270,1748526641257,-430.0,0.00019452,2]
[362939272,1748526641267,-310.0,0.00019452,2]
[362939274,1748526641277,-430.0,0.00019452,2]
[362939276,1748526641286,-430.0,0.00019452,2]
[362939278,1748526641296,-515.39280486,0.00019452,2]
[362939280,1748526641308,-223.85400448,0.00019452,2]
[362939282,1748526641318,-430.0,0.00019452,2]
[362939284,1748526641328,-430.0,0.00019726,2]
[362939286,1748526641338,-427.07915766,0.00019726,2]
[362939288,1748526641347,-430.0,0.00019726,2]
[362939290,1748526641356,-430.0,0.00019726,2]
[362939292,1748526641367,-343.86797803,0.00019726,2]
[362939294,1748526641380,-430.0,0.00019726,2]
[362939296,1748526641390,-430.0,0.00019726,2]
[362939298,1748526641399,-430.0,0.00019726,2]
[362939299,1748526641409,-430.0,0.00019726,2]
[362939302,1748526641420,-430.0,0.00019726,2]
[362939303,1748526641429,-1067.48,0.00019726,2]
[362939306,1748526641439,-220.0,0.00019726,2]
[362939307,1748526641449,-684.63,0.00019726,2]
[362939310,1748526641459,-242.6,0.00019726,2]
[362939312,1748526641468,-492.3,0.00019726,2]
[362939314,1748526641478,-430.0,0.00019726,2]
[362939315,1748526641487,-323.52,0.00019726,2]
[362939317,1748526641497,-430.0,0.00019726,2]
[362939319,1748526641506,-430.0,0.00019726,2]
[362939322,1748526641515,-430.0,0.00019726,2]
[362939323,1748526641525,-430.0,0.00019726,2]
[362939325,1748526641534,-1155.89,0.00019726,2]
[362939327,1748526641543,-295.5,0.00019726,2]
[362939330,1748526641552,-430.0,0.00019726,2]
[362939332,1748526641562,-430.0,0.00019726,2]
[362939334,1748526641571,-430.0,0.00019726,2]
[362939336,1748526641581,-347.22070214,0.00019726,2]
[362939337,1748526641590,-994.26,0.00019726,2]
[362939340,1748526641600,-430.0,0.00019726,2]
[362939341,1748526641609,-430.0,0.00019726,2]
[362939344,1748526641621,-469.67,0.00019726,2]
[362939346,1748526641633,-430.0,0.00019726,2]
[362939348,1748526641643,-430.0,0.00019726,2]
[362939350,1748526641652,-469.48,0.00019726,2]
[362939352,1748526641662,-430.0,0.00019726,2]
[362939354,1748526641671,-430.0,0.00019726,2]
[362939356,1748526641681,-1361.12,0.00019726,2]
[362939358,1748526641691,-430.0,0.00019726,2]
[362939359,1748526641700,-430.0,0.00019726,2]
[362939362,1748526641710,-430.0,0.00019726,2]
[362939364,1748526641720,-1613.66,0.00019726,2]
[362939366,1748526641729,-430.0,0.00019726,2]
[362939379,1748526641850,-452.21,0.00019726,2]
[362939381,1748526641860,-478.55774505,0.00019763,2]
[362939383,1748526641875,-503.76398954,0.00019763,2]
[362939385,1748526641884,-500.0,0.00019763,2]
[362939387,1748526641892,-500.84810147,0.00019763,2]
[362939389,1748526641901,-512.8240996,0.00019763,2]
[362939391,1748526641911,-501.07931688,0.00019763,2]
[362939393,1748526641919,-500.0,0.00019763,2]
[362939395,1748526641927,-500.06387121,0.00019763,2]
[362939397,1748526641935,-645.84577878,0.00019763,2]
[362939399,1748526641946,-1536.61552646,0.00019817,2]
[362939401,1748526641956,-250.0,0.00019823,2]
[362939403,1748526641966,-929.46290836,0.000199,2]
[362939405,1748526641975,-200.15489533,0.000199,2]
[362939407,1748526641986,-229.26895353,0.00019942,2]
[362939409,1748526641995,-430.0,0.0002,2]
[362939411,1748526642005,-430.0,0.0002,2]
[362939413,1748526642015,-430.0,0.0002,2]
[362939415,1748526642024,-430.0,0.0002,2]
[362939417,1748526642033,-430.0,0.0002,2]
[362939419,1748526642043,-1067.48,0.0002,2]
[362939421,1748526642052,-684.63,0.0002,2]
[362939423,1748526642061,-430.0,0.0002,2]
[362939424,1748526642070,-430.0,0.0002,2]
[362939425,1748526642079,-430.0,0.0002,2]
[362939426,1748526642089,-430.0,0.0002,2]
[362939427,1748526642099,-1155.89,0.0002,2]
[362939428,1748526642108,-430.0,0.0002,2]
[362939429,1748526642118,-430.0,0.0002,2]
[362939430,1748526642130,-994.26,0.0002,2]
[362939431,1748526642139,-250.0,0.0002,2]
[362939432,1748526642148,-430.0,0.0002,2]
[362939433,1748526642158,-430.0,0.0002,2]
[362939434,1748526642167,-430.0,0.0002,2]
[362939435,1748526642176,-469.48,0.0002,2]
[362939436,1748526642186,-430.0,0.0002,2]
[362939437,1748526642196,-273.1,0.0002,2]
[362939438,1748526642205,-1361.12,0.0002,2]
[362939439,1748526642213,-430.0,0.0002,2]
[362939440,1748526642222,-430.0,0.0002,2]
[362939441,1748526642231,-1613.66,0.0002,2]
[362939442,1748526642240,-430.0,0.0002,2]
[362939443,1748526642249,-929.46290811,0.00020072,2]
[362939444,1748526642259,-800.0,0.000201,2]
[362939445,1748526642268,-160.0,0.00020117,2]
[362939446,1748526642277,-160.0,0.00020117,2]
[362939447,1748526642286,-212.70147903,0.00020117,2]
[362939448,1748526642295,-929.46290811,0.00020245,2]
[362939449,1748526642304,-430.0,0.00020273,2]
[362939450,1748526642314,-430.0,0.00020273,2]
[362939451,1748526642324,-430.0,0.00020273,2]
[362939452,1748526642346,-430.0,0.00020273,2]
[362939453,1748526642366,-1067.48,0.00020273,2]
[362939454,1748526642379,-684.63,0.00020273,2]
[362939455,1748526642388,-430.0,0.00020273,2]
[362939456,1748526642399,-430.0,0.00020273,2]
[362939457,1748526642409,-430.0,0.00020273,2]
[362939459,1748526642418,-430.0,0.00020273,2]
[362939461,1748526642428,-1155.89,0.00020273,2]
[362939463,1748526642438,-430.0,0.00020273,2]
[362939465,1748526642447,-430.0,0.00020273,2]
[362939467,1748526642456,-994.26,0.00020273,2]
[362939469,1748526642466,-430.0,0.00020273,2]
[362939471,1748526642475,-430.0,0.00020273,2]
[362939473,1748526642485,-430.0,0.00020273,2]
[362939475,1748526642495,-469.48,0.00020273,2]
[362939477,1748526642504,-430.0,0.00020273,2]
[362939479,1748526642514,-1361.12,0.00020273,2]
[362939481,1748526642523,-430.0,0.00020273,2]
[362939483,1748526642533,-1613.66,0.00020273,2]
[362939485,1748526642543,-430.0,0.00020273,2]
[362939486,1748526642552,-929.46290811,0.00020417,3]
[362939488,1748526642562,-430.0,0.00020547,2]
[362939490,1748526642571,-473.38,0.00020547,2]
[362939491,1748526642581,-430.0,0.00020547,2]
[362939493,1748526642590,-263.86856649,0.00020547,2]
[362939495,1748526642600,-1067.48,0.00020547,2]
[362939497,1748526642610,-684.63,0.00020547,2]
[362939499,1748526642622,-430.0,0.00020547,2]
[362939500,1748526642632,-430.0,0.00020547,2]
[362939502,1748526642643,-430.0,0.00020547,2]
[362939504,1748526642652,-430.0,0.00020547,2]
[362939506,1748526642662,-1155.89,0.00020547,2]
[362939507,1748526642672,-430.0,0.00020547,2]
[362939509,1748526642682,-430.0,0.00020547,2]
[362939511,1748526642691,-994.26,0.00020547,2]
[362939513,1748526642701,-430.0,0.00020547,2]
[362939514,1748526642711,-430.0,0.00020547,2]
[362939516,1748526642721,-430.0,0.00020547,2]
[362939518,1748526642731,-469.48,0.00020547,2]
[362939520,1748526642741,-430.0,0.00020547,2]
[362939522,1748526642751,-1361.12,0.00020547,2]
[362939524,1748526642761,-430.0,0.00020547,2]
[362939525,1748526642770,-1613.66,0.00020547,2]
[362939527,1748526642780,-430.0,0.00020547,2]
[362939529,1748526642791,-929.46290811,0.0002059,3]
[362939531,1748526642802,-929.46290811,0.00020762,3]
[362939533,1748526642812,-430.0,0.00020821,2]
[362939534,1748526642822,-173.86934282,0.00020821,2]
[362939536,1748526642833,-1067.48,0.00020821,2]
[362939538,1748526642843,-684.63,0.00020821,2]
[362939540,1748526642855,-430.0,0.00020821,2]
[362939541,1748526642867,-367.8405064,0.00020821,2]
[362939543,1748526642879,-430.0,0.00020821,2]
[362939546,1748526642889,-1155.89,0.00020821,2]
[362939548,1748526642900,-530.17,0.00020821,2]
[362939550,1748526642911,-430.0,0.00020821,2]
[362939551,1748526642920,-994.26,0.00020821,2]
[362939553,1748526642930,-430.0,0.00020821,2]
[362939556,1748526642941,-430.0,0.00020821,2]
[362939559,1748526642950,-340.0,0.00020821,2]
[362939561,1748526642959,-469.48,0.00020821,2]
[362939563,1748526642969,-353.69790313,0.00020821,2]
[362939565,1748526642978,-1361.12,0.00020821,2]
[362939567,1748526642988,-430.0,0.00020821,2]
[362939569,1748526642998,-1613.66,0.00020821,2]
[362939571,1748526643007,-430.0,0.00020821,2]
[362939572,1748526643017,-929.46290811,0.00020934,4]
[362939573,1748526643026,-169.08669876,0.00021019,2]
[362939574,1748526643036,-430.0,0.00021095,2]
[362939575,1748526643045,-1067.48,0.00021095,2]
[362939576,1748526643054,-684.63,0.00021095,2]
[362939577,1748526643064,-400.29,0.00021095,2]
[362939578,1748526643074,-1155.89,0.00021095,2]
[362939579,1748526643083,-430.0,0.00021095,2]
[362939581,1748526643093,-430.0,0.00021095,2]
[362939582,1748526643103,-994.26,0.00021095,2]
[362939583,1748526643112,-430.0,0.00021095,2]
[362939584,1748526643124,-430.0,0.00021095,2]
[362939586,1748526643134,-469.48,0.00021095,2]
[362939587,1748526643143,-1361.12,0.00021095,2]
[362939589,1748526643153,-430.0,0.00021095,2]
[362939592,1748526643162,-1613.66,0.00021095,2]
[362939595,1748526643171,-430.0,0.00021095,2]
[362939598,1748526643180,-929.46290811,0.00021107,4]
[362939601,1748526643190,-500.0,0.00021164,2]
[362939603,1748526643200,-929.46290811,0.00021279,5]
[362939604,1748526643209,-430.0,0.00021369,2]
[362939606,1748526643218,-1067.48,0.00021369,2]
[362939608,1748526643227,-684.63,0.00021369,2]
[362939610,1748526643237,-1155.89,0.00021369,2]
[362939612,1748526643246,-430.0,0.00021369,2]
[362939613,1748526643256,-340.55,0.00021369,2]
[362939615,1748526643266,-994.26,0.00021369,2]
[362939617,1748526643275,-430.0,0.00021369,2]
[362939619,1748526643285,-430.0,0.00021369,2]
[362939621,1748526643294,-469.48,0.00021369,2]
[362939623,1748526643304,-1361.12,0.00021369,2]
[362939625,1748526643313,-1613.66,0.00021369,2]
[362939626,1748526643323,-430.0,0.00021369,2]
[362939628,1748526643332,-929.46290811,0.00021452,5]
[362939629,1748526643341,-929.46290811,0.00021624,5]
[362939630,1748526643351,-430.0,0.00021643,2]
[362939631,1748526643360,-1067.48,0.00021643,2]
[362939632,1748526643369,-684.63,0.00021643,2]
[362939633,1748526643382,-1155.89,0.00021643,2]
[362939634,1748526643392,-430.0,0.00021643,2]
[362939635,1748526643402,-994.26,0.00021643,2]
[362939636,1748526643411,-430.0,0.00021643,2]
[362939637,1748526643421,-430.0,0.00021643,2]
[362939638,1748526643430,-469.48,0.00021643,2]
[362939639,1748526643440,-1361.12,0.00021643,2]
[362939640,1748526643449,-1613.66,0.00021643,2]
[362939641,1748526643459,-430.0,0.00021643,2]
[362939642,1748526643469,-929.46290811,0.00021797,6]
[362939643,1748526643478,-430.0,0.00021917,2]
[362939644,1748526643487,-1067.48,0.00021917,2]
[362939645,1748526643497,-684.63,0.00021917,2]
[362939646,1748526643506,-1155.89,0.00021917,2]
[362939648,1748526643516,-430.0,0.00021917,2]
[362939650,1748526643525,-994.26,0.00021917,2]
[362939652,1748526643534,-430.0,0.00021917,2]
[362939654,1748526643544,-430.0,0.00021917,2]
[362939656,1748526643553,-469.48,0.00021917,2]
[362939658,1748526643563,-1361.12,0.00021917,2]
[362939659,1748526643572,-1613.66,0.00021917,2]
[362939661,1748526643581,-430.0,0.00021917,2]
[362939663,1748526643591,-500.0,0.00021918,2]
[362939665,1748526643600,-500.0,0.00021918,2]
[362939667,1748526643610,-500.0,0.00021918,2]
[362939669,1748526643623,-500.0,0.00021918,2]
[362939671,1748526643633,-584.59438931,0.00021918,2]
[362939672,1748526643642,-929.46290811,0.00021969,6]
[362939674,1748526643651,-849.37,0.00022,2]
[362939676,1748526643660,-6278.63,0.00022,2]
[362939678,1748526643670,-100305.53,0.00022,7]
[362939680,1748526643679,-875.79,0.00022,7]
[362939682,1748526643689,-177.0,0.00022,2]
[362939683,1748526643698,-929.46290811,0.00022141,6]
[362939685,1748526643707,-430.0,0.00022191,2]
[362939687,1748526643717,-430.0,0.00022191,2]
[362939689,1748526643726,-430.0,0.00022191,2]
[362939691,1748526643735,-430.0,0.00022191,2]
[362939693,1748526643745,-430.0,0.00022191,2]
[362939695,1748526643755,-587.99,0.00022191,2]
[362939697,1748526643765,-767.55,0.00022191,2]
[362939698,1748526643774,-552.26,0.00022191,2]
[362939700,1748526643784,-430.0,0.00022191,2]
[362939702,1748526643794,-1067.48,0.00022191,2]
[362939704,1748526643804,-684.63,0.00022191,2]
[362939706,1748526643813,-1155.89,0.00022191,2]
[362939708,1748526643823,-430.0,0.00022191,2]
[362939710,1748526643831,-994.26,0.00022191,2]
[362939712,1748526643842,-430.0,0.00022191,2]
[362939713,1748526643853,-430.0,0.00022191,2]
[362939715,1748526643862,-469.48,0.00022191,2]
[362939717,1748526643874,-1361.12,0.00022191,2]
[362939719,1748526643883,-1613.66,0.00022191,2]
[362939721,1748526643893,-430.0,0.00022191,2]
[362939723,1748526643903,-929.46290811,0.00022314,7]
[362939724,1748526643913,-430.0,0.00022465,2]
[362939726,1748526643923,-430.0,0.00022465,2]
[362939728,1748526643933,-430.0,0.00022465,2]
[362939730,1748526643945,-373.21,0.00022465,2]
[362939732,1748526643955,-546.29831389,0.00022465,2]
[362939734,1748526643965,-587.99,0.00022465,2]
[362939736,1748526643974,-767.55,0.00022465,2]
[362939738,1748526643984,-552.26,0.00022465,2]
[362939740,1748526643994,-430.0,0.00022465,2]
[362939742,1748526644003,-1067.48,0.00022465,2]